[Event "SuperChess Cup Blitz 2019"]
[Site "Bucharest"]
[Date "2019.11.10"]
[Round "14.5"]
[White "Georgescu, Tiberiu-Marian"]
[Black "Cosma, Elena-Luminita"]
[Result "1-0"]
[ECO "D35"]
[WhiteElo "2373"]
[BlackElo "2199"]
[Annotator "NA"]
[PlyCount "115"]
[EventDate "2019.11.06"]
[EventType "tourn"]
[EventCountry "ROU"]
[SourceTitle "playchess.com"]
[Source "ChessBase"]
[SourceQuality "1"]
[TimeMode "Bronstein"]
[TimeControl "300+3"]

1. d4 {[%emt 0:00:00]} d5 {[%emt 0:00:00]} 2. c4 {[%emt 0:00:00]} e6 {[%emt 0:00:00]} 3. Nc3 {[%emt 0:00:00]} Nf6 {[%emt 0:00:00]} 4. cxd5 {[%emt 0:00:00]} exd5 {[%emt 0:00:00]} 5. Bg5 {[%emt 0:00:00]} Be7 {[%emt 0:00:00]} 6. e3 {[%emt 0:00:00]} c6 {[%emt 0:00:00]} 7. Bd3 {[%emt 0:00:00]} Nbd7 {[%emt 0:00:00]} 8. Qc2 {[%emt 0:00:00]} Nh5 {[%emt 0:00:00]} 9. Bxe7 {[%emt 0:00:00]} Qxe7 {[%emt 0:00:00]} 10. O-O-O {[%emt 0:00:00]} Nb6 {[%emt 0:00:00]} 11. Kb1 {[%emt 0:00:00]} Be6 {[%emt 0:00:04]} 12. h3 {[%emt 0:00:07]} Nf6 {[%emt 0:00:06]} 13. f4 {[%emt 0:00:17]} O-O-O {[%emt 0:00:11]} 14. Nf3 {[%emt 0:00:03]} Kb8 {[%emt 0:00:03]} 15. Na4 {[%emt 0:00:33]} Nxa4 {[%emt 0:00:16]} 16. Qxa4 {[%emt 0:00:03]} Nd7 {[%emt 0:00:14]} 17. Rc1 {[%emt 0:00:31]} Nb6 {[%emt 0:00:03]} 18. Qa5 {[%emt 0:00:06]} f6 {[%emt 0:01:44]} 19. Rc3 {[%emt 0:00:05]} Nc8 {[%emt 0:00:10]} 20. Nd2 {[%emt 0:00:24]} Qc7 {[%emt 0:00:10]} 21. Qb4 {[%emt 0:00:12]} Qd6 {[%emt 0:00:03]} 22. Qa4 {[%emt 0:00:06]} Bd7 {[%emt 0:00:19]} 23. Qc2 {[%emt 0:00:03]} Rhe8 {[%emt 0:00:07]} 24. Bxh7 {[%emt 0:00:08]} Re7 {[%emt 0:00:36]} 25. Nb3 {[%emt 0:00:03]} Rde8 {[%emt 0:00:06]} 26. Bg6 {[%emt 0:00:03]} Rh8 {[%emt 0:00:05]} 27. Nc5 {[%emt 0:00:05]} Be8 {[%emt 0:00:09]} 28. Bf5 {[%emt 0:00:08]} Nb6 {[%emt 0:00:15]} 29. b3 {[%emt 0:00:20]} g5 {[%emt 0:00:34]} 30. fxg5 {[%emt 0:00:44]} fxg5 {[%emt 0:00:03]} 31. a4 {[%emt 0:00:10]} Rf8 {[%emt 0:00:03]} 32. g4 {[%emt 0:00:03]} Nd7 {[%emt 0:00:06]} 33. Nxb7 {[%emt 0:00:08]} Kxb7 {[%emt 0:00:10]} 34. Rc1 {[%emt 0:00:03]} Nb8 {[%emt 0:00:03]} 35. Qd2 {[%emt 0:00:04]} Ka8 {[%emt 0:00:03]} 36. Rc5 {[%emt 0:00:03]} Bd7 {[%emt 0:00:04]} 37. Rf1 {[%emt 0:00:30]} Bxf5+ 38. gxf5 {[%emt 0:00:03]} Ref7 {[%emt 0:00:06]} 39. Qc2 {[%emt 0:00:15]} Qd7 {[%emt 0:00:03]} 40. e4 {[%emt 0:00:09]} dxe4 {[%emt 0:00:05]} 41. Qxe4 {[%emt 0:00:03]} Re8 {[%emt 0:00:04]} 42. Qf3 {[%emt 0:00:03]} Qb7 {[%emt 0:00:15]} 43. f6 {[%emt 0:00:08]} Re6 {[%emt 0:00:03]} 44. Rf5 {[%emt 0:00:05]} Rexf6 {[%emt 0:00:03]} 45. Rxf6 {[%emt 0:00:04]} Rxf6 {[%emt 0:00:03]} 46. Qxf6 {[%emt 0:00:03]} Qxb3+ {[%emt 0:00:03]} 47. Kc1 {[%emt 0:00:03]} Qc4+ {[%emt 0:00:04]} 48. Kd2 {[%emt 0:00:03]} Qxa4 {[%emt 0:00:05]} 49. Rf3 {[%emt 0:00:09]} Qa2+ {[%emt 0:00:03]} 50. Ke3 {[%emt 0:00:03]} Qb3+ {[%emt 0:00:03]} 51. Kf2 {[%emt 0:00:03]} Qc2+ {[%emt 0:00:03]} 52. Kg3 {[%emt 0:00:03]} Qc1 {[%emt 0:00:03]} 53. Kg2 {[%emt 0:00:05]} Qd2+ {[%emt 0:00:03]} 54. Rf2 {[%emt 0:00:03]} Qc1 {[%emt 0:00:03]} 55. Qe5 {[%emt 0:00:04]} Kb7 {[%emt 0:00:05]} 56. d5 {[%emt 0:00:03]} Kb6 {[%emt 0:00:04]} 57. Rb2+ {[%emt 0:00:08]} Ka5 {[%emt 0:00:03]} 58. dxc6+ {[%emt 0:00:04]} 1-0

[Event "SuperChess Cup Blitz 2019"]
[Site "Bucharest"]
[Date "2019.11.10"]
[Round "15.1"]
[White "Georgescu, Tiberiu-Marian"]
[Black "Gavrilescu, David"]
[Result "1/2-1/2"]
[ECO "A20"]
[WhiteElo "2373"]
[BlackElo "2274"]
[Annotator "NA"]
[PlyCount "124"]
[EventDate "2019.11.06"]
[EventType "tourn"]
[EventCountry "ROU"]
[SourceTitle "playchess.com"]
[Source "ChessBase"]
[SourceQuality "1"]
[TimeMode "Bronstein"]
[TimeControl "300+3"]

1. c4 {[%emt 0:00:00]} e5 {[%emt 0:00:00]} 2. g3 {[%emt 0:00:00]} c5 {[%emt 0:00:00]} 3. Nc3 {[%emt 0:00:00]} Nc6 {[%emt 0:00:00]} 4. Bg2 {[%emt 0:00:00]} g6 {[%emt 0:00:00]} 5. a3 {[%emt 0:00:00]} Bg7 {[%emt 0:00:00]} 6. Rb1 {[%emt 0:00:00]} Nge7 {[%emt 0:00:02]} 7. b4 {[%emt 0:00:00]} d6 {[%emt 0:00:02]} 8. e3 {[%emt 0:00:22]} O-O {[%emt 0:00:06]} 9. Nge2 {[%emt 0:00:03]} cxb4 {[%emt 0:00:12]} 10. axb4 {[%emt 0:00:03]} Be6 {[%emt 0:00:03]} 11. d3 {[%emt 0:00:08]} d5 {[%emt 0:00:03]} 12. b5 {[%emt 0:00:51]} Na5 {[%emt 0:00:03]} 13. cxd5 {[%emt 0:00:14]} Nxd5 {[%emt 0:00:03]} 14. Ba3 {[%emt 0:00:27]} Re8 {[%emt 0:00:12]} 15. O-O {[%emt 0:00:04]} Rc8 {[%emt 0:00:25]} 16. Ne4 {[%emt 0:00:25]} Bg4 {[%emt 0:00:15]} 17. h3 {[%emt 0:00:48]} Bxe2 {[%emt 0:00:24]} 18. Qxe2 {[%emt 0:00:03]} Bf8 {[%emt 0:00:12]} 19. Bxf8 {[%emt 0:00:08]} Kxf8 {[%emt 0:00:12]} 20. Qa2 {[%emt 0:01:00]} Re7 {[%emt 0:00:27]} 21. Rfc1 {[%emt 0:00:22]} Rxc1+ {[%emt 0:00:30]} 22. Rxc1 {[%emt 0:00:03]} b6 {[%emt 0:00:03]} 23. Qa3 {[%emt 0:00:08]} Kg7 {[%emt 0:00:13]} 24. Qd6 {[%emt 0:00:09]} Qxd6 {[%emt 0:00:21]} 25. Nxd6 {[%emt 0:00:03]} Nb4 {[%emt 0:00:03]} 26. d4 {[%emt 0:00:12]} exd4 {[%emt 0:00:31]} 27. exd4 {[%emt 0:00:03]} Rd7 {[%emt 0:00:03]} 28. Ne8+ {[%emt 0:00:06]} Kf8 {[%emt 0:00:03]} 29. Nf6 {[%emt 0:00:08]} Rxd4 {[%emt 0:00:17]} 30. Nxh7+ {[%emt 0:00:03]} Kg7 {[%emt 0:00:05]} 31. Ng5 {[%emt 0:00:03]} Rd7 {[%emt 0:00:04]} 32. h4 {[%emt 0:00:05]} Nd3 {[%emt 0:00:15]} 33. Rc8 {[%emt 0:00:03]} Nb3 {[%emt 0:00:17]} 34. Bc6 {[%emt 0:00:04]} Re7 {[%emt 0:00:03]} 35. Bd5 {[%emt 0:00:04]} Nd4 {[%emt 0:00:03]} 36. Bxf7 {[%emt 0:00:04]} Re1+ {[%emt 0:00:36]} 37. Kg2 {[%emt 0:00:03]} Re2 {[%emt 0:00:03]} 38. Rc7 {[%emt 0:00:05]} Rxf2+ {[%emt 0:00:04]} 39. Kh3 {[%emt 0:00:03]} Nxb5 {[%emt 0:00:05]} 40. Rd7 {[%emt 0:00:03]} Ne5 {[%emt 0:00:03]} 41. Rd5 {[%emt 0:00:04]} Nxf7 {[%emt 0:00:03]} 42. Rxb5 {[%emt 0:00:03]} Rf5 {[%emt 0:00:05]} 43. Ne6+ {[%emt 0:00:04]} Kf6 {[%emt 0:00:03]} 44. Rxf5+ {[%emt 0:00:03]} Kxf5 {[%emt 0:00:03]} 45. Nc7 {[%emt 0:00:03]} Nd6 {[%emt 0:00:03]} 46. g4+ {[%emt 0:00:03]} Kf4 {[%emt 0:00:03]} 47. h5 {[%emt 0:00:03]} gxh5 {[%emt 0:00:03]} 48. gxh5 {[%emt 0:00:03]} Kg5 {[%emt 0:00:03]} 49. Kg3 {[%emt 0:00:03]} a5 {[%emt 0:00:03]} 50. Kf3 {[%emt 0:00:03]} Kxh5 {[%emt 0:00:04]} 51. Ke3 {[%emt 0:00:03]} Kg5 {[%emt 0:00:03]} 52. Kd4 {[%emt 0:00:03]} Kf6 {[%emt 0:00:03]} 53. Kd5 {[%emt 0:00:03]} Ke7 {[%emt 0:00:03]} 54. Kc6 {[%emt 0:00:03]} a4 {[%emt 0:00:03]} 55. Kxb6 {[%emt 0:00:03]} a3 {[%emt 0:00:03]} 56. Nd5+ {[%emt 0:00:03]} Ke6 {[%emt 0:00:03]} 57. Nb4 {[%emt 0:00:03]} Ke5 {[%emt 0:00:04]} 58. Ka5 {[%emt 0:00:03]} Nc4+ {[%emt 0:00:05]} 59. Ka4 {[%emt 0:00:03]} Ke4 {[%emt 0:00:03]} 60. Kb3 {[%emt 0:00:03]} Kd4 {[%emt 0:00:05]} 61. Nc2+ {[%emt 0:00:03]} Kc5 {[%emt 0:00:03]} 62. Nxa3 {[%emt 0:00:03]} Nxa3 {[%emt 0:00:03]} 1/2-1/2

[Event "SuperChess Cup Blitz 2019"]
[Site "Bucharest"]
[Date "2019.11.10"]
[Round "15.2"]
[White "Cosma, Elena-Luminita"]
[Black "Deac, Bogdan-Daniel"]
[Result "0-1"]
[ECO "D30"]
[WhiteElo "2199"]
[BlackElo "2544"]
[Annotator "ChessBase"]
[PlyCount "134"]
[EventDate "2019.11.06"]
[EventType "tourn"]
[EventCountry "ROU"]
[SourceTitle "playchess.com"]
[Source "ChessBase"]
[SourceQuality "1"]
[TimeMode "Bronstein"]
[TimeControl "300+3"]

1. d4 {[%emt 0:00:00]} d5 {[%emt 0:00:18]} 2. c4 {[%emt 0:00:00]} e6 {[%emt 0:00:03]} 3. Nf3 {[%emt 0:00:00]} Nd7 {[%emt 0:00:05]} 4. Nbd2 {[%emt 0:00:00]} Ngf6 {[%emt 0:00:03]} 5. g3 {[%emt 0:00:00]} b6 {[%emt 0:00:20]} 6. Bg2 {[%emt 0:00:02]} Bb7 {[%emt 0:00:03]} 7. O-O {[%emt 0:00:03]} Be7 {[%emt 0:00:03]} 8. b3 {[%emt 0:00:09]} O-O {[%emt 0:00:03]} 9. Bb2 {[%emt 0:00:03]} c5 {[%emt 0:00:03]} 10. e3 {[%emt 0:00:08]} Rc8 {[%emt 0:00:06]} 11. Rc1 {[%emt 0:00:03]} cxd4 {[%emt 0:00:31]} 12. Nxd4 {[%emt 0:00:10]} Nc5 {[%emt 0:00:21]} 13. Qe2 {[%emt 0:00:28]} Qd7 {[%emt 0:00:06]} 14. Rfd1 {[%emt 0:00:03]} Rfd8 {[%emt 0:00:03]} 15. N2f3 {[%emt 0:00:07]} Qe8 {[%emt 0:00:18]} 16. Ne5 {[%emt 0:00:20]} Bd6 {[%emt 0:00:14]} 17. Nb5 {[%emt 0:00:16]} Bf8 {[%emt 0:00:44]} 18. Nd4 {[%emt 0:00:37]} a6 {[%emt 0:00:47]} 19. Ng4 {[%emt 0:00:11]} Nxg4 {[%emt 0:00:26]} 20. Qxg4 {[%emt 0:00:03]} dxc4 {[%emt 0:00:03]} 21. Bxb7 {[%emt 0:00:10]} Nxb7 {[%emt 0:00:03]} 22. bxc4 {[%emt 0:00:11]} Na5 {[%emt 0:00:17]} 23. Nb3 {[%emt 0:00:07]} Rxd1+ {[%emt 0:00:03]} 24. Qxd1 {[%emt 0:00:26]} Nxc4 {[%emt 0:00:03]} 25. Ba1 {[%emt 0:00:52]} b5 {[%emt 0:00:07]} 26. Nd4 {[%emt 0:00:05]} Nb6 {[%emt 0:00:09]} 27. Nf3 {[%emt 0:00:14]} Qd7 {[%emt 0:00:17]} 28. Bd4 {[%emt 0:00:08]} Nc4 {[%emt 0:00:09]} 29. h4 {[%emt 0:00:21]} f6 {[%emt 0:00:03]} 30. Qe2 {[%emt 0:00:20]} e5 {[%emt 0:00:07]} 31. Ba1 {[%emt 0:00:04]} Qe6 {[%emt 0:00:03]} 32. Rc2 {[%emt 0:00:06]} h6 {[%emt 0:00:15]} 33. Nd2 {[%emt 0:00:07]} Nb6 {[%emt 0:00:09]} 34. Nb3 {[%emt 0:00:03]} Rxc2 {[%emt 0:00:03]} 35. Qxc2 {[%emt 0:00:03]} Qc4 {[%emt 0:00:03]} 36. Qd1 {[%emt 0:00:06]} a5 {[%emt 0:00:05]} 37. Kh2 {[%emt 0:00:05]} a4 {[%emt 0:00:03]} 38. Nc1 {[%emt 0:00:03]} Nd5 {[%emt 0:00:03]} 39. e4 {[%emt 0:00:03]} Qxe4 {[%emt 0:00:03]} 40. Ne2 {[%emt 0:00:06]} Qf3 {[%emt 0:00:03]} 41. Kg1 {[%emt 0:00:03]} Bc5 {[%emt 0:00:03]} 42. Qf1 {[%emt 0:00:04]} b4 {[%emt 0:00:03]} 43. Bb2 {[%emt 0:00:11]} b3 {[%emt 0:00:03]} 44. axb3 {[%emt 0:00:03]} axb3 {[%emt 0:00:03]} 45. Kh2 {[%emt 0:00:05]} Qxf2+ {[%emt 0:00:03]} 46. Qxf2 {[%emt 0:00:03]} Bxf2 {[%emt 0:00:03]} 47. Nc1 {[%emt 0:00:03]} h5 {[%emt 0:00:04]} 48. Kg2 {[%emt 0:00:03]} Bb6 {[%emt 0:00:03]} 49. Nxb3 {[%emt 0:00:03]} Kf7 {[%emt 0:00:03]} 50. Ba3 {[%emt 0:00:03]} Ke6 {[%emt 0:00:03]} 51. Nd2 {[%emt 0:00:03]} Kf5 {[%emt 0:00:03]} 52. Nc4 {[%emt 0:00:03]} Bc7 {[%emt 0:00:03]} 53. Bd6 {[%emt 0:00:03]} Bd8 {[%emt 0:00:03]} 54. Bc5 {[%emt 0:00:03]} g6 {[%emt 0:00:03]} 55. Ba7 {[%emt 0:00:03]} Ke6 {[%emt 0:00:03]} 56. Bc5 {[%emt 0:00:03]} Nc3 {[%emt 0:00:03]} 57. Kf3 {[%emt 0:00:03]} Kd5 {[%emt 0:00:03]} 58. Bb6 {[%emt 0:00:04]} Kxc4 {[%emt 0:00:03]} 59. Bxd8 {[%emt 0:00:03]} f5 {[%emt 0:00:03]} 60. Bf6 {[%emt 0:00:03]} Kd4 {[%emt 0:00:03]} 61. Bg7 {[%emt 0:00:03]} Nd5 {[%emt 0:00:03]} 62. Bh8 {[%emt 0:00:03]} Ne7 {[%emt 0:00:03]} 63. Bf6 {[%emt 0:00:03]} Nc6 {[%emt 0:00:03]} 64. Bh8 {[%emt 0:00:03]} Kd3 {[%emt 0:00:03]} 65. Bg7 {[%emt 0:00:03]} Nd4+ {[%emt 0:00:03]} 66. Kg2 {[%emt 0:00:03]} e4 {[%emt 0:00:03]} 67. Bh6 {[%emt 0:00:03]} e3 {[%emt 0:00:03]} 0-1

[Event "SuperChess Cup Blitz 2019"]
[Site "Bucharest"]
[Date "2019.11.10"]
[Round "15.3"]
[White "Istratescu, Andrei"]
[Black "Peptan, Corina-Isabela"]
[Result "1/2-1/2"]
[ECO "B48"]
[WhiteElo "2604"]
[BlackElo "2334"]
[Annotator "ChessBase"]
[PlyCount "95"]
[EventDate "2019.11.06"]
[EventType "tourn"]
[EventCountry "ROU"]
[SourceTitle "playchess.com"]
[Source "ChessBase"]
[SourceQuality "1"]
[TimeMode "Bronstein"]
[TimeControl "300+3"]

1. e4 {[%emt 0:00:00]} c5 {[%emt 0:00:00]} 2. Nf3 {[%emt 0:00:00]} e6 {[%emt 0:00:00]} 3. d4 {[%emt 0:00:00]} cxd4 {[%emt 0:00:00]} 4. Nxd4 {[%emt 0:00:00]} Nc6 {[%emt 0:00:00]} 5. Nc3 {[%emt 0:00:00]} Qc7 {[%emt 0:00:00]} 6. Be3 {[%emt 0:00:00]} a6 {[%emt 0:00:00]} 7. a3 {[%emt 0:00:10]} Nf6 {[%emt 0:00:03]} 8. f4 {[%emt 0:00:20]} d6 {[%emt 0:00:16]} 9. Be2 {[%emt 0:00:07]} Be7 {[%emt 0:00:16]} 10. g4 {[%emt 0:00:03]} d5 {[%emt 0:00:31]} 11. e5 {[%emt 0:00:16]} Nd7 {[%emt 0:00:08]} 12. h4 {[%emt 0:00:27]} Nxd4 {[%emt 0:00:19]} 13. Qxd4 {[%emt 0:00:15]} b5 {[%emt 0:00:13]} 14. Qd2 {[%emt 0:00:21]} Bb7 {[%emt 0:00:03]} 15. Bd4 {[%emt 0:00:03]} Nb6 {[%emt 0:00:35]} 16. Qe3 {[%emt 0:00:50]} Nc4 {[%emt 0:00:08]} 17. Bxc4 {[%emt 0:00:03]} dxc4 {[%emt 0:00:03]} 18. Rh2 Qc6 {[%emt 0:00:19]} 19. O-O-O {[%emt 0:00:20]} O-O-O {[%emt 0:00:46]} 20. Rf1 {[%emt 0:01:10]} h5 {[%emt 0:00:35]} 21. g5 {[%emt 0:00:04]} g6 {[%emt 0:00:03]} 22. Rd2 {[%emt 0:00:06]} Kc7 {[%emt 0:00:03]} 23. Rfd1 {[%emt 0:00:09]} Kb8 {[%emt 0:00:45]} 24. Ne2 {[%emt 0:00:33]} Qe4 {[%emt 0:00:19]} 25. Qf2 {[%emt 0:00:13]} Ka8 {[%emt 0:00:03]} 26. Nc3 {[%emt 0:00:04]} Qc6 {[%emt 0:00:03]} 27. Be3 {[%emt 0:00:03]} Rxd2 {[%emt 0:00:03]} 28. Rxd2 {[%emt 0:00:03]} Rd8 {[%emt 0:00:03]} 29. Rxd8+ {[%emt 0:00:03]} Bxd8 {[%emt 0:00:03]} 30. Qd2 {[%emt 0:00:03]} Be7 {[%emt 0:00:03]} 31. Qd4 {[%emt 0:00:03]} Kb8 {[%emt 0:00:03]} 32. Kb1 {[%emt 0:00:03]} Kc8 {[%emt 0:00:03]} 33. Na2 {[%emt 0:00:03]} Qd7 {[%emt 0:00:03]} 34. Qxd7+ {[%emt 0:00:03]} Kxd7 {[%emt 0:00:03]} 35. Kc1 {[%emt 0:00:03]} Be4 {[%emt 0:00:03]} 36. Nc3 {[%emt 0:00:03]} Bb7 {[%emt 0:00:03]} 37. Ne2 {[%emt 0:00:03]} a5 {[%emt 0:00:03]} 38. Nd4 {[%emt 0:00:03]} b4 {[%emt 0:00:03]} 39. axb4 {[%emt 0:00:03]} axb4 {[%emt 0:00:03]} 40. c3 {[%emt 0:00:03]} bxc3 {[%emt 0:00:03]} 41. bxc3 {[%emt 0:00:03]} Ba3+ {[%emt 0:00:03]} 42. Kd2 {[%emt 0:00:03]} Be4 {[%emt 0:00:03]} 43. Nb5 {[%emt 0:00:03]} Be7 {[%emt 0:00:03]} 44. Ba7 {[%emt 0:00:03]} Kc6 {[%emt 0:00:03]} 45. Nd6 {[%emt 0:00:04]} Bxd6 {[%emt 0:00:03]} 46. exd6 {[%emt 0:00:03]} Kxd6 {[%emt 0:00:03]} 47. Ke3 {[%emt 0:00:03]} Bd3 {[%emt 0:00:03]} 48. Bd4 {Ke5} 1/2-1/2

[Event "SuperChess Cup Blitz 2019"]
[Site "Bucharest"]
[Date "2019.11.10"]
[Round "15.4"]
[White "David, Alexandru-Vasile"]
[Black "Parligras, Mircea-Emilian"]
[Result "0-1"]
[ECO "E49"]
[WhiteElo "2361"]
[BlackElo "2458"]
[Annotator "ChessBase"]
[PlyCount "94"]
[EventDate "2019.11.06"]
[EventType "tourn"]
[EventCountry "ROU"]
[SourceTitle "playchess.com"]
[Source "ChessBase"]
[SourceQuality "1"]
[TimeMode "Bronstein"]
[TimeControl "300+3"]

1. d4 {[%emt 0:00:00]} Nf6 {[%emt 0:00:00]} 2. c4 {[%emt 0:00:00]} e6 {[%emt 0:00:00]} 3. Nc3 {[%emt 0:00:00]} Bb4 {[%emt 0:00:00]} 4. e3 {[%emt 0:00:00]} O-O {[%emt 0:00:00]} 5. Bd3 {[%emt 0:00:00]} d5 {[%emt 0:00:00]} 6. a3 {[%emt 0:00:00]} Bxc3+ {[%emt 0:00:00]} 7. bxc3 {[%emt 0:00:00]} c6 {[%emt 0:00:00]} 8. cxd5 {[%emt 0:00:25]} cxd5 {[%emt 0:00:00]} 9. Ne2 {[%emt 0:00:08]} b6 {[%emt 0:00:10]} 10. f3 {[%emt 0:00:08]} Ba6 {[%emt 0:00:03]} 11. O-O {[%emt 0:00:03]} Qc8 {[%emt 0:00:03]} 12. e4 {[%emt 0:00:03]} Bxd3 {[%emt 0:00:05]} 13. Qxd3 {[%emt 0:00:03]} Qa6 {[%emt 0:00:03]} 14. Qe3 {[%emt 0:00:07]} Nc6 {[%emt 0:00:06]} 15. e5 {[%emt 0:00:03]} Nd7 {[%emt 0:00:05]} 16. Nf4 {[%emt 0:00:03]} Rae8 {[%emt 0:00:11]} 17. Nh5 {[%emt 0:00:56]} f6 {[%emt 0:00:03]} 18. exf6 {[%emt 0:00:03]} Nxf6 {[%emt 0:00:04]} 19. Nxf6+ {[%emt 0:00:05]} Rxf6 {[%emt 0:00:06]} 20. Bd2 {[%emt 0:00:25]} e5 {[%emt 0:00:16]} 21. f4 {[%emt 0:00:06]} e4 {[%emt 0:00:07]} 22. f5 {[%emt 0:00:03]} Na5 {[%emt 0:00:27]} 23. Qg3 {[%emt 0:00:11]} Qd3 {[%emt 0:00:14]} 24. Qxd3 {[%emt 0:00:24]} exd3 {[%emt 0:00:03]} 25. Rad1 {[%emt 0:00:03]} Rc6 {[%emt 0:00:44]} 26. Rf3 {[%emt 0:00:03]} Nc4 {[%emt 0:00:18]} 27. Bf4 {[%emt 0:00:14]} Nxa3 {[%emt 0:00:57]} 28. Rfxd3 {[%emt 0:01:12]} Nc4 {[%emt 0:00:03]} 29. Ra1 {[%emt 0:00:03]} a5 {[%emt 0:00:04]} 30. Kf2 {[%emt 0:00:03]} b5 {[%emt 0:00:10]} 31. Ra2 {[%emt 0:00:44]} a4 {[%emt 0:00:06]} 32. g4 {[%emt 0:00:03]} Re4 {[%emt 0:00:14]} 33. Rf3 {[%emt 0:00:06]} Rc8 {[%emt 0:00:13]} 34. g5 {[%emt 0:00:03]} Rce8 {[%emt 0:00:12]} 35. f6 {[%emt 0:00:16]} gxf6 {[%emt 0:00:03]} 36. gxf6 {[%emt 0:00:03]} Kf7 {[%emt 0:00:03]} 37. Bg5 {[%emt 0:00:03]} a3 {[%emt 0:00:10]} 38. h4 {[%emt 0:00:10]} h6 {[%emt 0:00:10]} 39. Bc1 {[%emt 0:00:04]} Rxh4 {[%emt 0:00:03]} 40. Kg3 {[%emt 0:00:03]} Rh1 {[%emt 0:00:04]} 41. Ra1 {[%emt 0:00:05]} Ree1 {[%emt 0:00:03]} 42. Rxa3 {[%emt 0:00:03]} Nxa3 {[%emt 0:00:03]} 43. Bxa3 {[%emt 0:00:03]} Reg1+ {[%emt 0:00:03]} 44. Kf2 {[%emt 0:00:03]} Rf1+ {[%emt 0:00:03]} 45. Ke2 {[%emt 0:00:03]} Rxf3 {[%emt 0:00:03]} 46. Kxf3 {[%emt 0:00:03]} Rh3+ {[%emt 0:00:03]} 47. Kg4 {[%emt 0:00:03]} Rxc3 {[%emt 0:00:03]} 0-1

[Event "SuperChess Cup Blitz 2019"]
[Site "Bucharest"]
[Date "2019.11.10"]
[Round "15.5"]
[White "Miron, Lucian-Costin"]
[Black "Lupulescu, Constantin"]
[Result "1/2-1/2"]
[ECO "D04"]
[WhiteElo "2432"]
[BlackElo "2525"]
[Annotator "ChessBase"]
[PlyCount "43"]
[EventDate "2019.11.06"]
[EventType "tourn"]
[EventCountry "ROU"]
[SourceTitle "playchess.com"]
[Source "ChessBase"]
[SourceQuality "1"]
[TimeMode "Bronstein"]
[TimeControl "300+3"]

1. d4 {[%emt 0:00:00]} Nf6 {[%emt 0:00:00]} 2. Nf3 {[%emt 0:00:00]} d5 {[%emt 0:00:00]} 3. e3 {[%emt 0:00:00]} c5 {[%emt 0:00:04]} 4. Bd3 {[%emt 0:00:00]} Nc6 {[%emt 0:00:10]} 5. O-O {[%emt 0:00:00]} cxd4 {[%emt 0:00:13]} 6. exd4 {[%emt 0:00:07]} Bg4 {[%emt 0:00:03]} 7. c3 {[%emt 0:00:07]} e6 {[%emt 0:00:03]} 8. Bf4 {[%emt 0:00:14]} Bd6 {[%emt 0:00:03]} 9. Bxd6 {[%emt 0:00:04]} Qxd6 {[%emt 0:00:03]} 10. Nbd2 {[%emt 0:00:03]} O-O {[%emt 0:00:07]} 11. Re1 {[%emt 0:00:03]} Ne7 {[%emt 0:00:20]} 12. Qc2 {[%emt 0:00:14]} Bf5 {[%emt 0:00:11]} 13. Ne5 {[%emt 0:00:08]} Rab8 {[%emt 0:00:41]} 14. a4 {[%emt 0:00:24]} Nd7 {[%emt 0:00:04]} 15. Bxf5 {[%emt 0:00:11]} Nxf5 {[%emt 0:00:03]} 16. Nd3 {[%emt 0:00:15]} Rbc8 {[%emt 0:00:18]} 17. Nf3 {[%emt 0:00:09]} h6 {[%emt 0:00:05]} 18. Qd2 {[%emt 0:00:08]} Ne7 {[%emt 0:00:15]} 19. Nfe5 {[%emt 0:00:15]} Nxe5 {[%emt 0:00:10]} 20. Nxe5 {[%emt 0:00:03]} Nc6 {[%emt 0:00:08]} 21. Re3 {[%emt 0:01:17]} Nxe5 {[%emt 0:00:05]} 22. Rxe5 {[%emt 0:00:07]} 1/2-1/2

[Event "SuperChess Cup Blitz 2019"]
[Site "Bucharest"]
[Date "2019.11.10"]
[Round "16.1"]
[White "Gavrilescu, David"]
[Black "Miron, Lucian-Costin"]
[Result "1/2-1/2"]
[ECO "C44"]
[WhiteElo "2274"]
[BlackElo "2432"]
[Annotator "NA"]
[PlyCount "67"]
[EventDate "2019.11.06"]
[EventType "tourn"]
[EventCountry "ROU"]
[SourceTitle "playchess.com"]
[Source "ChessBase"]
[SourceQuality "1"]
[TimeMode "Bronstein"]
[TimeControl "300+3"]

1. e4 {[%emt 0:00:00]} e5 {[%emt 0:00:00]} 2. Nf3 {[%emt 0:00:00]} Nc6 {[%emt 0:00:00]} 3. d4 {[%emt 0:00:00]} exd4 {[%emt 0:00:00]} 4. Nxd4 {[%emt 0:00:00]} Nf6 {[%emt 0:00:00]} 5. Nxc6 {[%emt 0:00:00]} bxc6 {[%emt 0:00:00]} 6. Bd3 {[%emt 0:00:00]} d5 {[%emt 0:00:01]} 7. exd5 {[%emt 0:00:00]} cxd5 {[%emt 0:00:01]} 8. O-O {[%emt 0:00:00]} Be7 {[%emt 0:00:11]} 9. c4 {[%emt 0:00:00]} dxc4 {[%emt 0:00:30]} 10. Bxc4 {[%emt 0:00:00]} Qxd1 {[%emt 0:00:03]} 11. Rxd1 {[%emt 0:00:00]} O-O {[%emt 0:00:21]} 12. Nc3 {[%emt 0:00:00]} Bg4 {[%emt 0:00:07]} 13. f3 {[%emt 0:00:12]} Bc5+ {[%emt 0:00:32]} 14. Kf1 {[%emt 0:00:12]} Bf5 {[%emt 0:00:08]} 15. Bg5 {[%emt 0:00:18]} Bd6 {[%emt 0:00:31]} 16. Bxf6 {[%emt 0:00:30]} gxf6 {[%emt 0:00:03]} 17. h3 {[%emt 0:01:00]} Rab8 {[%emt 0:00:14]} 18. Bb3 {[%emt 0:00:29]} Be5 {[%emt 0:00:25]} 19. Rd2 {[%emt 0:00:03]} Bf4 {[%emt 0:00:16]} 20. Rdd1 {[%emt 0:00:25]} Be5 {[%emt 0:00:03]} 21. Kf2 {[%emt 0:00:12]} Be6 {[%emt 0:00:26]} 22. Nd5 {[%emt 0:00:31]} Bxd5 {[%emt 0:00:36]} 23. Rxd5 {[%emt 0:00:03]} Bxb2 {[%emt 0:00:03]} 24. Rad1 {[%emt 0:00:03]} Be5 {[%emt 0:00:04]} 25. g3 {[%emt 0:00:04]} Kg7 {[%emt 0:00:04]} 26. f4 {[%emt 0:00:03]} Bd6 {[%emt 0:00:03]} 27. Kf3 {[%emt 0:00:03]} Rfe8 {[%emt 0:00:03]} 28. Ra5 {[%emt 0:00:03]} Rb7 {[%emt 0:00:17]} 29. Rd3 {[%emt 0:00:18]} Re7 {[%emt 0:00:12]} 30. Re3 {[%emt 0:00:22]} Rxe3+ {[%emt 0:00:09]} 31. Kxe3 {[%emt 0:00:03]} Bb4 {[%emt 0:00:03]} 32. Rd5 {[%emt 0:00:09]} Bd6 {[%emt 0:00:05]} 33. Ra5 {[%emt 0:00:03]} Bb4 {[%emt 0:00:03]} 34. Rd5 {[%emt 0:00:03]} 1/2-1/2